[Event "44th Chess Olympiad Women 2022"]
[Site "Chennai"]
[Date "2022.08.01"]
[Round "4.50"]
[White "Ollet, Myra"]
[Black "Besa, Masaiti"]
[Result "0-1"]
[WhiteElo "1480"]
[BlackElo "1745"]
[Annotator "NA RC"]
[PlyCount "123"]
[EventDate "2022.??.??"]
[TimeControl "60"]

1. d4 {[%emt 0:00:08]} Nf6 {[%emt 0:00:06]} 2. Bf4 {[%emt 0:00:10]} g6 {
[%emt 0:00:24]} 3. h3 {[%emt 0:00:25]} d5 {[%emt 0:00:14]} 4. Nf3 {[%emt 0:00:
00]} Bg7 {[%emt 0:00:15]} 5. Nbd2 {[%emt 0:00:28]} c5 {[%emt 0:00:57]} 6. c3 {
[%emt 0:00:26]} Nc6 {[%emt 0:00:19]} 7. e3 {[%emt 0:03:47]} cxd4 {[%emt 0:00:
00]} 8. cxd4 {[%emt 0:00:54]} Qb6 {[%emt 0:00:47]} 9. Rb1 {[%emt 0:02:25]} Bf5
{[%emt 0:00:25]} 10. Rc1 {[%emt 0:05:51]} Qxb2 {[%emt 0:00:44]} 11. Be2 {
[%emt 0:01:44]} O-O {[%emt 0:00:12]} 12. O-O {[%emt 0:01:11]} Qxa2 {[%emt 0:00:
00]} 13. Ne5 {[%emt 0:04:50]} Nxe5 {[%emt 0:01:02]} 14. Bxe5 {[%emt 0:01:18]}
Rfc8 {[%emt 0:00:15]} 15. Rxc8+ {[%emt 0:12:39]} Rxc8 {[%emt 0:00:14]} 16. Bxf6
{[%emt 0:29:47]} Bxf6 {[%emt 0:00:16]} 17. Nf3 {[%emt 0:02:01]} Qc2 {[%emt 0:
00:00]} 18. g4 {[%emt 0:09:23]} Be4 {[%emt 0:00:52]} 19. Nh2 {[%emt 0:00:32]}
Qxd1 {[%emt 0:02:46]} 20. Rxd1 {[%emt 0:00:24]} g5 {[%emt 0:00:55]} 21. f3 {
[%emt 0:00:50]} Bc2 {[%emt 0:02:49]} 22. Rc1 {[%emt 0:00:27]} Rc6 {[%emt 0:00:
00]} 23. Bb5 {[%emt 0:00:54]} Rb6 {[%emt 0:02:04]} 24. Rxc2 {[%emt 0:01:33]}
Rxb5 {[%emt 0:00:00]} 25. Nf1 {[%emt 0:00:23]} e6 {[%emt 0:00:04]} 26. Ng3 {
[%emt 0:00:09]} h6 {[%emt 0:03:16]} 27. Rc8+ {[%emt 0:01:37]} Kh7 {[%emt 0:00:
00]} 28. Rc7 {[%emt 0:00:16]} Kg6 {[%emt 0:01:35]} 29. Nh5 {[%emt 0:00:32]} Rb6
{[%emt 0:09:46]} 30. Rc8 {[%emt 0:00:17]} e5 {[%emt 0:00:27]} 31. Rg8+ {
[%emt 0:00:14]} Kh7 {[%emt 0:00:18]} 32. Rf8 {[%emt 0:03:50]} exd4 {[%emt 0:00:
00]} 33. exd4 {[%emt 0:06:46]} Bxd4+ {[%emt 0:00:14]} 34. Kf1 {[%emt 0:00:11]}
a5 {[%emt 0:01:12]} 35. Rxf7+ {[%emt 0:00:59]} Kg6 {[%emt 0:02:30]} 36. Rd7 {
[%emt 0:00:10]} a4 {[%emt 0:00:24]} 37. Rxd5 {[%emt 0:00:46]} a3 {[%emt 0:00:
00]} 38. Rxd4 {[%emt 0:00:18]} a2 {[%emt 0:00:06]} 39. Ra4 {[%emt 0:01:23]} Ra6
{[%emt 0:00:12]} 40. Rxa2 {[%emt 0:00:19]} Rxa2 {[%emt 0:00:05]} 41. Ng3 {
[%emt 0:30:14]} b5 {[%emt 0:30:10]} 42. Ne4 {[%emt 0:00:21]} b4 {[%emt 0:00:08]
} 43. Ke1 {[%emt 0:00:09]} h5 {[%emt 0:00:58]} 44. Kd1 {[%emt 0:00:29]} hxg4 {
[%emt 0:00:08]} 45. hxg4 {[%emt 0:00:23]} Ra3 {[%emt 0:01:03]} 46. Nd2 {
[%emt 0:00:36]} Re3 {[%emt 0:01:47]} 47. Kc1 {[%emt 0:01:27]} b3 {[%emt 0:00:
00]} 48. Kb2 {[%emt 0:00:53]} Re2 {[%emt 0:03:03]} 49. Kc3 {[%emt 0:02:06]} b2
{[%emt 0:00:44]} 50. Nb1 {[%emt 0:00:06]} Rf2 {[%emt 0:00:15]} 51. Kb3 {
[%emt 0:01:51]} Kf6 {[%emt 0:00:33]} 52. Nc3 {[%emt 0:00:18]} Ke5 {[%emt 0:00:
00]} 53. Ka2 {[%emt 0:00:52]} Kf4 {[%emt 0:00:26]} 54. Nd1 {[%emt 0:05:22]}
Rxf3 {[%emt 0:00:06]} 55. Kxb2 {[%emt 0:00:08]} Kxg4 {[%emt 0:00:06]} 56. Kc2 {
[%emt 0:00:13]} Kh3 {[%emt 0:00:11]} 57. Kd2 {[%emt 0:00:45]} g4 {[%emt 0:00:
00]} 58. Ke2 {[%emt 0:00:24]} Kh2 {[%emt 0:00:27]} 59. Nb2 {[%emt 0:00:50]} Ra3
{[%emt 0:01:17]} 60. Nd1 {[%emt 0:00:34]} g3 {[%emt 0:00:15]} 61. Ne3 {[%emt 0:
00:00]} Rxe3+ {[%emt 0:00:27]} 62. Kxe3 {[%emt 0:00:22]} 0-1

[Event "44th Chess Olympiad Women 2022"]
[Site "Chennai"]
[Date "2022.08.01"]
[Round "4.51"]
[White "Banda Tapiwa"]
[Black "Juarez Garcia, Daniela"]
[Result "0-1"]
[WhiteElo "1238"]
[BlackElo "1725"]
[Annotator "NA RC"]
[PlyCount "92"]
[EventDate "2022.??.??"]
[TimeControl "60"]

1. d4 {[%emt 0:00:03]} d5 {[%emt 0:00:34]} 2. e3 {[%emt 0:00:09]} Nf6 {[%emt 0:
00:00]} 3. Bd3 {[%emt 0:00:08]} e6 {[%emt 0:00:07]} 4. Nd2 {[%emt 0:00:24]}
Nbd7 {[%emt 0:00:20]} 5. f4 {[%emt 0:00:09]} c5 {[%emt 0:00:23]} 6. c3 {
[%emt 0:00:07]} Be7 {[%emt 0:01:06]} 7. Ngf3 {[%emt 0:00:09]} Qc7 {[%emt 0:00:
00]} 8. Ne5 {[%emt 0:01:44]} a6 {[%emt 0:05:07]} 9. O-O {[%emt 0:09:31]} b5 {
[%emt 0:00:38]} 10. Bb1 {[%emt 0:03:07]} Bb7 {[%emt 0:01:35]} 11. a3 {[%emt 0:
00:00]} Ne4 {[%emt 0:01:22]} 12. Nxe4 {[%emt 0:06:02]} dxe4 {[%emt 0:00:09]}
13. Bd2 {[%emt 0:00:28]} Bf6 {[%emt 0:04:26]} 14. Bc2 {[%emt 0:02:45]} Rd8 {
[%emt 0:01:25]} 15. Qb1 {[%emt 0:07:18]} Nxe5 {[%emt 0:01:06]} 16. fxe5 {
[%emt 0:00:05]} Bxe5 {[%emt 0:00:29]} 17. Bxe4 {[%emt 0:00:48]} Bxh2+ {[%emt 0:
00:00]} 18. Kh1 {[%emt 0:00:04]} Bd5 {[%emt 0:03:42]} 19. Rf3 {[%emt 0:00:42]}
Bd6 {[%emt 0:04:18]} 20. Bxd5 {[%emt 0:03:00]} exd5 {[%emt 0:00:24]} 21. Qf5 {
[%emt 0:00:26]} Bf8 {[%emt 0:04:55]} 22. Raf1 {[%emt 0:00:25]} f6 {[%emt 0:00:
00]} 23. Rh3 {[%emt 0:00:45]} Qd7 {[%emt 0:01:27]} 24. Qxd7+ {[%emt 0:05:11]}
Rxd7 {[%emt 0:00:35]} 25. b4 {[%emt 0:00:37]} c4 {[%emt 0:00:36]} 26. Re1 {
[%emt 0:00:39]} f5 {[%emt 0:02:27]} 27. Kg1 {[%emt 0:01:44]} g6 {[%emt 0:00:55]
} 28. Kf2 {[%emt 0:00:38]} Kf7 {[%emt 0:00:29]} 29. Reh1 {[%emt 0:00:11]} h5 {
[%emt 0:00:30]} 30. Kf1 {[%emt 0:02:28]} Bh6 {[%emt 0:01:53]} 31. Kf2 {[%emt 0:
00:00]} Re8 {[%emt 0:00:42]} 32. Re1 {[%emt 0:00:33]} Rde7 {[%emt 0:00:10]} 33.
Rf3 {[%emt 0:01:59]} Kf6 {[%emt 0:01:31]} 34. Rg3 {[%emt 0:03:13]} Bg5 {
[%emt 0:01:38]} 35. Rh3 {[%emt 0:01:23]} Re4 {[%emt 0:00:17]} 36. Re2 {[%emt 0:
00:00]} f4 {[%emt 0:02:34]} 37. Rf3 {[%emt 0:00:27]} Kg7 {[%emt 0:00:19]} 38.
g3 {[%emt 0:00:38]} fxe3+ {[%emt 0:01:58]} 39. Bxe3 {[%emt 0:00:33]} Bxe3+ {
[%emt 0:00:06]} 40. Rexe3 {[%emt 0:00:07]} Rxe3 {[%emt 0:00:32]} 41. Rxe3 {
[%emt 0:30:05]} Rxe3 {[%emt 0:30:22]} 42. Kxe3 {[%emt 0:00:06]} Kf6 {[%emt 0:
00:00]} 43. Kf4 {[%emt 0:08:03]} g5+ {[%emt 0:00:07]} 44. Kf3 {[%emt 0:00:23]}
Kf5 {[%emt 0:00:20]} 45. Kf2 {[%emt 0:03:19]} Ke4 {[%emt 0:01:09]} 46. Ke2 {
[%emt 0:00:31]} h4 {[%emt 0:00:21]} 0-1

[Event "44th Chess Olympiad Women 2022"]
[Site "Chennai"]
[Date "2022.08.01"]
[Round "4.51"]
[White "Kapalamula Martha"]
[Black "Lopez L., Dairyn D."]
[Result "0-1"]
[WhiteElo "1237"]
[BlackElo "1574"]
[Annotator "NA RC"]
[PlyCount "74"]
[EventDate "2022.??.??"]
[TimeControl "60"]

1. e4 {[%emt 0:00:07]} g6 {[%emt 0:00:23]} 2. d4 {[%emt 0:00:08]} Bg7 {[%emt 0:
00:00]} 3. Nf3 {[%emt 0:00:25]} d6 {[%emt 0:00:09]} 4. Bc4 {[%emt 0:01:28]} e6
{[%emt 0:00:07]} 5. O-O {[%emt 0:00:33]} Ne7 {[%emt 0:00:48]} 6. Nc3 {[%emt 0:
00:00]} O-O {[%emt 0:01:06]} 7. Re1 {[%emt 0:01:30]} c6 {[%emt 0:02:40]} 8. a4
{[%emt 0:00:45]} d5 {[%emt 0:01:01]} 9. exd5 {[%emt 0:01:46]} cxd5 {[%emt 0:00:
00]} 10. Bb3 {[%emt 0:02:50]} Nbc6 {[%emt 0:00:12]} 11. Ne2 {[%emt 0:01:46]}
Nf5 {[%emt 0:00:52]} 12. c3 {[%emt 0:00:29]} b6 {[%emt 0:03:35]} 13. Bc2 {
[%emt 0:01:31]} Nce7 {[%emt 0:09:11]} 14. Bg5 {[%emt 0:01:37]} Qc7 {[%emt 0:00:
00]} 15. Bxe7 {[%emt 0:01:19]} Nxe7 {[%emt 0:00:08]} 16. Ng3 {[%emt 0:00:48]}
a6 {[%emt 0:00:54]} 17. Qd2 {[%emt 0:04:24]} Rb8 {[%emt 0:03:08]} 18. b4 {
[%emt 0:01:01]} Nc6 {[%emt 0:04:02]} 19. h4 {[%emt 0:06:50]} e5 {[%emt 0:05:48]
} 20. h5 {[%emt 0:08:28]} e4 {[%emt 0:02:27]} 21. Nh4 {[%emt 0:00:55]} Qd8 {
[%emt 0:03:59]} 22. b5 {[%emt 0:02:37]} axb5 {[%emt 0:00:44]} 23. axb5 {
[%emt 0:00:03]} Na5 {[%emt 0:00:10]} 24. Qf4 {[%emt 0:02:30]} Bd7 {[%emt 0:00:
00]} 25. hxg6 {[%emt 0:30:12]} fxg6 {[%emt 0:07:15]} 26. Qd6 {[%emt 0:01:21]}
Rf6 {[%emt 0:00:26]} 27. Qxd5+ {[%emt 0:00:39]} Kh8 {[%emt 0:06:57]} 28. Nxe4 {
[%emt 0:06:27]} Rf8 {[%emt 0:03:21]} 29. Nf3 {[%emt 0:05:42]} Rf5 {[%emt 0:00:
00]} 30. Qa2 {[%emt 0:01:03]} Bxb5 {[%emt 0:11:48]} 31. Ng3 {[%emt 0:03:41]}
Bc4 {[%emt 0:04:35]} 32. Qa3 {[%emt 0:03:19]} Rb5 {[%emt 0:03:54]} 33. Qc1 {
[%emt 0:02:55]} Qc7 {[%emt 0:03:03]} 34. Kh2 {[%emt 0:02:40]} Rf8 {[%emt 0:00:
00]} 35. Rh1 {[%emt 0:00:35]} Bd5 {[%emt 0:02:38]} 36. Qd1 {[%emt 0:04:35]}
Bxf3 {[%emt 0:02:32]} 37. gxf3 {[%emt 0:00:39]} Qxc3 {[%emt 0:02:44]} 0-1

[Event "44th Chess Olympiad Women 2022"]
[Site "Chennai"]
[Date "2022.08.01"]
[Round "4.51"]
[White "Mazariegos, Silvia Carolina"]
[Black "Jambo, Linda"]
[Result "1-0"]
[WhiteElo "1851"]
[BlackElo "1426"]
[Annotator "NA RC"]
[PlyCount "71"]
[EventDate "2022.??.??"]
[TimeControl "60"]

1. d4 {[%emt 1:31:00]} d5 {[%emt 0:00:22]} 2. e3 {[%emt 0:00:00]} Nf6 {[%emt 0:
00:00]} 3. Bd3 {[%emt 0:00:00]} e6 {[%emt 0:00:33]} 4. Nd2 {[%emt 0:00:00]} Be7
{[%emt 0:00:14]} 5. c3 {[%emt 0:00:00]} O-O {[%emt 0:00:57]} 6. Qe2 {[%emt 0:
00:00]} b6 {[%emt 0:02:16]} 7. f4 {[%emt 0:00:00]} a5 {[%emt 0:10:49]} 8. Ngf3
{[%emt 0:00:00]} Ba6 {[%emt 0:07:01]} 9. O-O {[%emt 0:00:00]} Bxd3 {[%emt 0:00:
00]} 10. Qxd3 {[%emt 0:00:00]} Nbd7 {[%emt 0:01:08]} 11. Ne5 {[%emt 0:00:00]}
Nxe5 {[%emt 0:01:28]} 12. fxe5 {[%emt 0:00:00]} Nd7 {[%emt 0:02:18]} 13. Nf3 {
[%emt 0:00:00]} h6 {[%emt 0:16:01]} 14. e4 {[%emt 0:00:00]} c6 {[%emt 0:02:22]}
15. Be3 {[%emt 0:00:00]} b5 {[%emt 0:10:13]} 16. exd5 {[%emt 0:00:00]} exd5 {
[%emt 0:00:12]} 17. Qf5 {[%emt 0:00:00]} Qc8 {[%emt 0:12:37]} 18. Qh5 {[%emt 0:
00:00]} Nb6 {[%emt 0:05:14]} 19. Rae1 {[%emt 0:00:00]} Qe6 {[%emt 0:02:41]} 20.
Bc1 {[%emt 0:00:00]} Rae8 {[%emt 0:02:38]} 21. Nh4 {[%emt 0:00:00]} Bxh4 {
[%emt 0:00:38]} 22. Qxh4 {[%emt 0:00:00]} Nd7 {[%emt 0:01:23]} 23. Re3 {
[%emt 0:00:00]} Qe7 {[%emt 0:03:21]} 24. Qh5 {[%emt 0:00:00]} Qe6 {[%emt 0:00:
00]} 25. Rg3 {[%emt 0:00:00]} Kh7 {[%emt 0:03:16]} 26. Re3 {[%emt 0:02:47]} Qg6
{[%emt 0:03:01]} 27. Qe2 {[%emt 0:00:27]} a4 {[%emt 0:01:18]} 28. Rg3 {[%emt 0:
00:00]} Qe6 {[%emt 0:00:52]} 29. Re3 {[%emt 0:02:00]} Qg6 {[%emt 0:02:08]} 30.
h4 {[%emt 0:00:20]} Re6 {[%emt 0:03:22]} 31. h5 {[%emt 0:00:50]} Qg5 {[%emt 0:
00:00]} 32. b3 {[%emt 0:00:57]} axb3 {[%emt 0:01:02]} 33. axb3 {[%emt 0:00:11]}
Qd8 {[%emt 0:02:42]} 34. Rg3 {[%emt 0:00:27]} f6 {[%emt 0:00:34]} 35. Qg4 {
[%emt 0:00:26]} Rg8 {[%emt 0:00:33]} 36. Qxe6 {[%emt 0:00:10]} 1-0

[Event "44th Chess Olympiad Women 2022"]
[Site "Chennai"]
[Date "2022.08.01"]
[Round "4.51"]
[White "Natareno, Elvia"]
[Black "Msukwa, Tupokiwe"]
[Result "1-0"]
[WhiteElo "1581"]
[BlackElo "1369"]
[Annotator "NA RC"]
[PlyCount "136"]
[EventDate "2022.??.??"]
[TimeControl "60"]

1. d4 {[%emt 0:00:05]} d5 {[%emt 0:01:55]} 2. Nf3 {[%emt 0:00:10]} Nf6 {
[%emt 0:00:10]} 3. e3 {[%emt 0:00:35]} Bf5 {[%emt 0:00:27]} 4. b3 {[%emt 0:00:
00]} e6 {[%emt 0:00:40]} 5. Bb2 {[%emt 0:02:14]} Be7 {[%emt 0:03:04]} 6. Nbd2 {
[%emt 0:01:31]} Nbd7 {[%emt 0:02:07]} 7. Be2 {[%emt 0:01:54]} h6 {[%emt 0:00:
00]} 8. h3 {[%emt 0:02:56]} c5 {[%emt 0:02:29]} 9. O-O {[%emt 0:03:46]} O-O {
[%emt 0:02:11]} 10. c4 {[%emt 0:03:36]} Nb6 {[%emt 0:03:52]} 11. Rc1 {[%emt 0:
00:00]} Rc8 {[%emt 0:07:34]} 12. cxd5 {[%emt 0:01:56]} exd5 {[%emt 0:00:38]}
13. dxc5 {[%emt 0:00:26]} Bxc5 {[%emt 0:01:09]} 14. Nd4 {[%emt 0:00:42]} Be4 {
[%emt 0:02:26]} 15. Bg4 {[%emt 0:02:58]} Nxg4 {[%emt 0:02:53]} 16. Qxg4 {
[%emt 0:00:12]} Bg6 {[%emt 0:01:53]} 17. Nf5 {[%emt 0:04:35]} Qd7 {[%emt 0:00:
00]} 18. Nxg7 {[%emt 0:02:40]} Qxg4 {[%emt 0:04:12]} 19. hxg4 {[%emt 0:00:09]}
Bb4 {[%emt 0:00:46]} 20. Nf3 {[%emt 0:00:15]} Bd3 {[%emt 0:05:07]} 21. Rxc8 {
[%emt 0:05:29]} Rxc8 {[%emt 0:00:46]} 22. Ra1 {[%emt 0:00:19]} Rc2 {[%emt 0:00:
00]} 23. Bd4 {[%emt 0:02:12]} Bc3 {[%emt 0:01:47]} 24. Bxc3 {[%emt 0:00:19]}
Rxc3 {[%emt 0:00:16]} 25. Ne8 {[%emt 0:00:16]} Rc2 {[%emt 0:07:53]} 26. Nd4 {
[%emt 0:00:33]} Rc8 {[%emt 0:06:00]} 27. Nd6 {[%emt 0:06:04]} Rc7 {[%emt 0:00:
00]} 28. Rd1 {[%emt 0:03:54]} Ba6 {[%emt 0:03:39]} 29. Kh2 {[%emt 0:00:20]} Kf8
{[%emt 0:07:00]} 30. Kg3 {[%emt 0:00:17]} Nc8 {[%emt 0:03:04]} 31. N6f5 {
[%emt 0:02:00]} Ne7 {[%emt 0:01:30]} 32. Nxh6 {[%emt 0:00:40]} Nc6 {[%emt 0:00:
00]} 33. Nhf5 {[%emt 0:00:33]} Nd8 {[%emt 0:06:26]} 34. Rh1 {[%emt 0:00:54]}
Kg8 {[%emt 0:00:47]} 35. Rh6 {[%emt 0:01:12]} Bd3 {[%emt 0:02:55]} 36. Rd6 {
[%emt 0:01:38]} Nc6 {[%emt 0:01:16]} 37. Rxd5 {[%emt 0:01:00]} Nxd4 {[%emt 0:
00:00]} 38. Nxd4 {[%emt 0:00:21]} Bb1 {[%emt 0:01:05]} 39. a4 {[%emt 0:00:22]}
a6 {[%emt 0:00:29]} 40. f4 {[%emt 0:00:28]} Re7 {[%emt 0:01:19]} 41. Kf2 {
[%emt 0:30:36]} Rc7 {[%emt 0:30:31]} 42. b4 {[%emt 0:00:21]} Rc4 {[%emt 0:00:
00]} 43. b5 {[%emt 0:00:12]} Rxa4 {[%emt 0:02:03]} 44. bxa6 {[%emt 0:00:12]}
bxa6 {[%emt 0:00:51]} 45. g5 {[%emt 0:00:45]} a5 {[%emt 0:00:00]} 46. Rb5 {
[%emt 0:00:00]} Be4 {[%emt 0:00:00]} 47. Nb3 {[%emt 0:00:00]} Ra2+ {[%emt 0:00:
00]} 48. Ke1 {[%emt 0:00:00]} a4 {[%emt 0:00:00]} 49. Nc1 {[%emt 0:00:00]} Rxg2
{[%emt 0:00:00]} 50. Ra5 {[%emt 0:00:00]} Rg1+ {[%emt 0:00:00]} 51. Kd2 {
[%emt 0:00:00]} Rg2+ {[%emt 0:00:00]} 52. Ke1 {[%emt 0:00:00]} Rg1+ {[%emt 0:
00:00]} 53. Kd2 {[%emt 0:00:00]} Rg2+ {[%emt 0:00:00]} 54. Kc3 {[%emt 0:00:00]}
Rc2+ {[%emt 0:00:00]} 55. Kd4 {[%emt 0:00:00]} Bh7 {[%emt 0:00:00]} 56. Nd3 {
[%emt 0:00:00]} Rd2 {[%emt 0:00:00]} 57. e4 {[%emt 0:00:00]} Ra2 {[%emt 0:00:
00]} 58. Ke5 {[%emt 0:00:00]} Kg7 {[%emt 0:00:00]} 59. Ra7 {[%emt 0:00:00]} a3
{[%emt 0:00:00]} 60. Nc5 {[%emt 0:00:00]} Rc2 {[%emt 0:00:00]} 61. Ne6+ {
[%emt 0:00:00]} Kh8 {[%emt 0:00:00]} 62. Nd8 {[%emt 0:00:00]} Bg6 {[%emt 0:00:
00]} 63. f5 {[%emt 0:00:00]} Rc8 {[%emt 0:02:42]} 64. fxg6 {[%emt 0:00:00]}
Rxd8 {[%emt 0:03:31]} 65. gxf7 {[%emt 0:00:00]} Kg7 {[%emt 0:00:58]} 66. Kf5 {
[%emt 0:00:00]} Rf8 {[%emt 0:02:46]} 67. g6 {[%emt 0:00:00]} Rb8 {[%emt 0:00:
00]} 68. Rxa3 {[%emt 0:00:00]} Rb5+ {[%emt 0:01:14]} 1-0

[Event "44th Chess Olympiad Women 2022"]
[Site "Chennai"]
[Date "2022.08.01"]
[Round "4.52"]
[White "Bagga, Khushi"]
[Black "Mentile, Lishen"]
[Result "1-0"]
[WhiteElo "1328"]
[BlackElo "1486"]
[Annotator "NA RC"]
[PlyCount "55"]
[EventDate "2022.??.??"]
[TimeControl "60"]

1. e4 {[%emt 0:00:02]} d5 {[%emt 0:00:14]} 2. exd5 {[%emt 0:00:04]} Qxd5 {
[%emt 0:00:17]} 3. Nc3 {[%emt 0:00:02]} Qd6 {[%emt 0:00:48]} 4. Bc4 {[%emt 0:
00:00]} Nf6 {[%emt 0:00:45]} 5. d4 {[%emt 0:01:32]} a6 {[%emt 0:01:21]} 6. Nge2
{[%emt 0:04:43]} Qc6 {[%emt 0:05:42]} 7. Qd3 {[%emt 0:11:03]} Qxg2 {[%emt 0:00:
00]} 8. Rg1 {[%emt 0:04:56]} Qxh2 {[%emt 0:13:54]} 9. Bf4 {[%emt 0:05:06]} Qh3
{[%emt 0:01:51]} 10. Ng3 {[%emt 0:08:16]} Qd7 {[%emt 0:01:41]} 11. O-O-O {
[%emt 0:04:55]} e6 {[%emt 0:09:40]} 12. Rge1 {[%emt 0:06:02]} Bd6 {[%emt 0:00:
00]} 13. Bxd6 {[%emt 0:10:07]} Qxd6 {[%emt 0:04:26]} 14. Kb1 {[%emt 0:03:24]}
g6 {[%emt 0:09:24]} 15. d5 {[%emt 0:07:28]} c6 {[%emt 0:01:03]} 16. Qd4 {
[%emt 0:07:20]} Nbd7 {[%emt 0:05:27]} 17. Nge4 {[%emt 0:02:04]} Qe7 {[%emt 0:
00:00]} 18. dxe6 {[%emt 0:00:41]} fxe6 {[%emt 0:03:46]} 19. Nxf6+ {[%emt 0:00:
00]} Nxf6 {[%emt 0:02:24]} 20. Ne4 {[%emt 0:00:18]} Kf7 {[%emt 0:02:22]} 21.
Nd6+ {[%emt 0:02:26]} Kg7 {[%emt 0:01:12]} 22. Nxc8 {[%emt 0:01:19]} Raxc8 {
[%emt 0:01:18]} 23. Rxe6 {[%emt 0:01:50]} Qd8 {[%emt 0:01:35]} 24. Rxf6 {
[%emt 0:13:21]} Qxf6 {[%emt 0:00:26]} 25. Qd7+ {[%emt 0:00:07]} Kf8 {[%emt 0:
00:00]} 26. Qxc8+ {[%emt 0:00:30]} Kg7 {[%emt 0:00:00]} 27. Qd7+ {[%emt 0:00:
00]} Kf8 {[%emt 0:04:00]} 28. Re1 {[%emt 0:00:35]} 1-0

[Event "44th Chess Olympiad Women 2022"]
[Site "Chennai"]
[Date "2022.08.01"]
[Round "4.52"]
[White "Chong, Kimberly"]
[Black "Beukes Jamie-Nicole"]
[Result "1/2-1/2"]
[WhiteElo "1741"]
[BlackElo "1231"]
[Annotator "NA RC"]
[PlyCount "108"]
[EventDate "2022.??.??"]
[TimeControl "60"]

1. e4 {[%emt 0:00:03]} c5 {[%emt 0:00:10]} 2. c3 {[%emt 0:00:03]} Nc6 {[%emt 0:
00:00]} 3. d4 {[%emt 0:00:19]} cxd4 {[%emt 0:00:09]} 4. cxd4 {[%emt 0:00:11]}
d5 {[%emt 0:00:32]} 5. exd5 {[%emt 0:01:19]} Qxd5 {[%emt 0:00:21]} 6. Nf3 {
[%emt 0:00:19]} e5 {[%emt 0:01:19]} 7. Nc3 {[%emt 0:01:32]} Bb4 {[%emt 0:07:04]
} 8. Bd2 {[%emt 0:05:18]} Bxc3 {[%emt 0:08:09]} 9. Bxc3 {[%emt 0:04:07]} Bg4 {
[%emt 0:08:09]} 10. dxe5 {[%emt 0:18:53]} Rd8 {[%emt 0:08:18]} 11. Qxd5 {
[%emt 0:01:31]} Rxd5 {[%emt 0:00:43]} 12. Be2 {[%emt 0:08:18]} Nge7 {[%emt 0:
00:00]} 13. h3 {[%emt 0:02:43]} Be6 {[%emt 0:06:56]} 14. Bc4 {[%emt 0:13:22]}
Rc5 {[%emt 0:02:46]} 15. Bxe6 {[%emt 0:00:14]} fxe6 {[%emt 0:00:17]} 16. O-O {
[%emt 0:06:57]} Nd5 {[%emt 0:10:10]} 17. Rac1 {[%emt 0:09:21]} Nf4 {[%emt 0:00:
00]} 18. Rce1 {[%emt 0:05:43]} h6 {[%emt 0:14:37]} 19. Nd2 {[%emt 0:01:48]} O-O
{[%emt 0:05:29]} 20. Ne4 {[%emt 0:03:45]} Rd5 {[%emt 0:05:23]} 21. Nd6 {
[%emt 0:02:56]} b5 {[%emt 0:03:37]} 22. Re4 {[%emt 0:02:57]} Nd3 {[%emt 0:00:
00]} 23. f4 {[%emt 0:02:45]} b4 {[%emt 0:01:55]} 24. Be1 {[%emt 0:01:08]} a5 {
[%emt 0:01:52]} 25. Rc4 {[%emt 0:01:33]} Nd4 {[%emt 0:01:13]} 26. Nc8 {[%emt 0:
00:00]} Nf5 {[%emt 0:02:06]} 27. g4 {[%emt 0:00:18]} Ne3 {[%emt 0:00:39]} 28.
Ne7+ {[%emt 0:02:08]} Kh7 {[%emt 0:00:18]} 29. Nxd5 {[%emt 0:00:22]} Nxc4 {
[%emt 0:00:09]} 30. Nc7 {[%emt 0:00:51]} Nxf4 {[%emt 0:00:46]} 31. Kh2 {
[%emt 0:01:03]} Ng6 {[%emt 0:00:33]} 32. Rf2 {[%emt 0:00:31]} Ncxe5 {[%emt 0:
00:00]} 33. Rxf8 {[%emt 0:00:45]} Nxf8 {[%emt 0:00:08]} 34. Bf2 {[%emt 0:00:23]
} Nd3 {[%emt 0:00:19]} 35. Bb6 {[%emt 0:00:13]} a4 {[%emt 0:00:20]} 36. b3 {
[%emt 0:00:46]} axb3 {[%emt 0:00:22]} 37. axb3 {[%emt 0:00:05]} Nd7 {[%emt 0:
00:00]} 38. Be3 {[%emt 0:00:50]} N7c5 {[%emt 0:00:19]} 39. Kg3 {[%emt 0:00:35]}
e5 {[%emt 0:00:32]} 40. Nd5 {[%emt 0:00:45]} Nxb3 {[%emt 0:00:23]} 41. Kf3 {
[%emt 0:02:59]} Nbc5 {[%emt 0:00:52]} 42. Bxc5 {[%emt 0:00:44]} Nxc5 {[%emt 0:
00:00]} 43. Nxb4 {[%emt 0:00:08]} Kg6 {[%emt 0:01:21]} 44. h4 {[%emt 0:03:07]}
h5 {[%emt 0:03:13]} 45. Nd5 {[%emt 0:01:12]} hxg4+ {[%emt 0:07:30]} 46. Kxg4 {
[%emt 0:00:11]} Kh6 {[%emt 0:02:13]} 47. Ne3 {[%emt 0:02:32]} g6 {[%emt 0:00:
00]} 48. Nd5 {[%emt 0:07:01]} Ne6 {[%emt 0:03:17]} 49. Ne3 {[%emt 0:00:57]} Nd4
{[%emt 0:03:58]} 50. Nc4 {[%emt 0:03:01]} Nc6 {[%emt 0:01:17]} 51. Ne3 {
[%emt 0:00:14]} Ne7 {[%emt 0:03:09]} 52. Nc4 {[%emt 0:00:26]} Nc6 {[%emt 0:00:
00]} 53. Ne3 {[%emt 0:00:39]} Ne7 {[%emt 0:00:16]} 54. Nc4 {[%emt 0:01:20]} Nc6
{[%emt 0:00:00]} 1/2-1/2

[Event "44th Chess Olympiad Women 2022"]
[Site "Chennai"]
[Date "2022.08.01"]
[Round "4.52"]
[White "Tsuses, Patience"]
[Black "Ray, Hiya"]
[Result "0-1"]
[WhiteElo "1075"]
[BlackElo "1586"]
[Annotator "NA RC"]
[PlyCount "68"]
[EventDate "2022.??.??"]
[TimeControl "60"]

1. e4 {[%emt 0:00:05]} c5 {[%emt 0:00:06]} 2. Nf3 {[%emt 0:00:05]} Nc6 {
[%emt 0:00:05]} 3. d4 {[%emt 0:00:11]} cxd4 {[%emt 0:00:06]} 4. Nxd4 {[%emt 0:
00:00]} g6 {[%emt 0:00:19]} 5. Be3 {[%emt 0:04:05]} Bg7 {[%emt 0:01:14]} 6. c3
{[%emt 0:03:42]} Nf6 {[%emt 0:02:53]} 7. Bd3 {[%emt 0:07:58]} Ne5 {[%emt 0:00:
00]} 8. f3 {[%emt 0:03:15]} O-O {[%emt 0:02:47]} 9. Bc2 {[%emt 0:05:36]} d5 {
[%emt 0:04:18]} 10. Nd2 {[%emt 0:01:59]} dxe4 {[%emt 0:07:02]} 11. Nxe4 {
[%emt 0:02:44]} Nd5 {[%emt 0:05:58]} 12. Qe2 {[%emt 0:09:24]} Nxe3 {[%emt 0:00:
00]} 13. Qxe3 {[%emt 0:02:46]} Nc4 {[%emt 0:02:01]} 14. Qc1 {[%emt 0:09:04]}
Bxd4 {[%emt 0:02:42]} 15. cxd4 {[%emt 0:05:30]} Qxd4 {[%emt 0:00:14]} 16. b3 {
[%emt 0:02:39]} Ne3 {[%emt 0:00:56]} 17. Ke2 {[%emt 0:04:31]} Nxg2 {[%emt 0:00:
00]} 18. Qh6 {[%emt 0:04:15]} b6 {[%emt 0:09:50]} 19. Rad1 {[%emt 0:05:48]}
Ba6+ {[%emt 0:02:17]} 20. Bd3 {[%emt 0:00:50]} Bxd3+ {[%emt 0:05:42]} 21. Rxd3
{[%emt 0:00:42]} Qe5 {[%emt 0:00:45]} 22. Kf2 {[%emt 0:06:54]} Nf4 {[%emt 0:00:
00]} 23. Rd2 {[%emt 0:06:09]} f6 {[%emt 0:01:06]} 24. Rg1 {[%emt 0:06:57]} Rad8
{[%emt 0:04:06]} 25. Rxd8 {[%emt 0:03:13]} Rxd8 {[%emt 0:00:07]} 26. Kg3 {
[%emt 0:03:57]} Ne2+ {[%emt 0:01:08]} 27. Kg2 {[%emt 0:00:16]} Nxg1 {[%emt 0:
00:00]} 28. Kxg1 {[%emt 0:00:02]} Rd1+ {[%emt 0:01:10]} 29. Kg2 {[%emt 0:00:46]
} Ra1 {[%emt 0:02:18]} 30. Qd2 {[%emt 0:00:43]} Rb1 {[%emt 0:02:50]} 31. Qd8+ {
[%emt 0:00:38]} Kf7 {[%emt 0:00:56]} 32. Nf2 {[%emt 0:00:35]} Qg5+ {[%emt 0:00:
00]} 33. Kh3 {[%emt 0:00:25]} Rg1 {[%emt 0:00:11]} 34. Ng4 {[%emt 0:00:32]}
Qh5# {[%emt 0:00:38]} 0-1